[Event "Early-Titled-Tuesday-Blitz-May-28-2024"]
[Site "Chess.com"]
[Date "2024.05.28"]
[Round "6"]
[White "Mr_ruthless"]
[Black "littlepinkyboy"]
[Result "0-1"]
[WhiteElo "2473"]
[BlackElo "2635"]
[TimeControl "180+1"]
[EndTime "9:08:16 PDT"]
[Termination "littlepinkyboy won on time"]

1. e4 {[%clk 0:03:00.9]} 1... c5 {[%clk 0:03:00.1]} 2. Nf3 {[%clk 0:02:57.2]}
2... d6 {[%clk 0:03:00.2]} 3. d4 {[%clk 0:02:57.3]} 3... cxd4 {[%clk 0:03:01.1]}
4. Nxd4 {[%clk 0:02:56.4]} 4... Nf6 {[%clk 0:03:01.8]} 5. Nc3 {[%clk 0:02:56.4]}
5... a6 {[%clk 0:03:02.6]} 6. Bg5 {[%clk 0:02:55.7]} 6... Nbd7 {[%clk
0:03:01.9]} 7. Bc4 {[%clk 0:02:49.9]} 7... Qc7 {[%clk 0:02:57.2]} 8. Bb3 {[%clk
0:02:48.5]} 8... e6 {[%clk 0:02:57.7]} 9. Qe2 {[%clk 0:02:43.7]} 9... b5 {[%clk
0:02:48.1]} 10. O-O-O {[%clk 0:02:41.1]} 10... Nc5 {[%clk 0:02:47.2]} 11. f3
{[%clk 0:02:22]} 11... Be7 {[%clk 0:02:45.3]} 12. Kb1 {[%clk 0:02:21.3]} 12...
Bd7 {[%clk 0:02:42]} 13. h4 {[%clk 0:02:18.9]} 13... b4 {[%clk 0:02:31.7]} 14.
Nd5 {[%clk 0:02:14.8]} 14... exd5 {[%clk 0:02:30.8]} 15. exd5 {[%clk 0:02:15]}
15... Kf8 {[%clk 0:01:59.5]} 16. Rhe1 {[%clk 0:02:10.4]} 16... Re8 {[%clk
0:01:58.1]} 17. h5 {[%clk 0:02:00.5]} 17... h6 {[%clk 0:01:57]} 18. Bh4 {[%clk
0:02:00]} 18... Nxd5 {[%clk 0:01:33.7]} 19. Bxe7+ {[%clk 0:01:48.3]} 19... Rxe7
{[%clk 0:01:34.6]} 20. Qc4 {[%clk 0:01:48.4]} 20... Nxb3 {[%clk 0:01:20]} 21.
Qxb3 {[%clk 0:01:48.9]} 21... Be6 {[%clk 0:01:16.3]} 22. Nxe6+ {[%clk
0:01:36.6]} 22... fxe6 {[%clk 0:01:17.2]} 23. f4 {[%clk 0:01:35.3]} 23... Nf6
{[%clk 0:00:48.9]} 24. Rxe6 {[%clk 0:01:32.8]} 24... Rxe6 {[%clk 0:00:43.7]} 25.
Qxe6 {[%clk 0:01:33.7]} 25... Qd7 {[%clk 0:00:29.5]} 26. Qe2 {[%clk 0:01:08.1]}
26... Kf7 {[%clk 0:00:27]} 27. Qxa6 {[%clk 0:01:05.2]} 27... d5 {[%clk
0:00:21.7]} 28. Qb6 {[%clk 0:00:54.6]} 28... Re8 {[%clk 0:00:18.7]} 29. Qxb4
{[%clk 0:00:47.9]} 29... Re4 {[%clk 0:00:19.3]} 30. Qd2 {[%clk 0:00:35.5]} 30...
Qg4 {[%clk 0:00:12.8]} 31. Rf1 {[%clk 0:00:32.2]} 31... Re2 {[%clk 0:00:08.7]}
32. Qd3 {[%clk 0:00:28.4]} 32... Rxg2 {[%clk 0:00:06]} 33. a4 {[%clk 0:00:26]}
33... Qxh5 {[%clk 0:00:05.5]} 34. a5 {[%clk 0:00:24]} 34... Qe2 {[%clk
0:00:05.1]} 35. a6 {[%clk 0:00:19.8]} 35... Qxd3 {[%clk 0:00:04.7]} 36. cxd3
{[%clk 0:00:19.9]} 36... Re2 {[%clk 0:00:05.2]} 37. Rc1 {[%clk 0:00:14.6]} 37...
Re8 {[%clk 0:00:02.5]} 38. Rc7+ {[%clk 0:00:14.2]} 38... Kg6 {[%clk 0:00:02.5]}
39. b4 {[%clk 0:00:14.6]} 39... Ra8 {[%clk 0:00:01.7]} 40. b5 {[%clk 0:00:14.8]}
40... h5 {[%clk 0:00:02.3]} 41. a7 {[%clk 0:00:14.3]} 41... h4 {[%clk
0:00:01.9]} 42. b6 {[%clk 0:00:14.7]} 42... h3 {[%clk 0:00:02.5]} 43. Rc1 {[%clk
0:00:10.8]} 43... Nd7 {[%clk 0:00:01.8]} 44. Rc6+ {[%clk 0:00:09.1]} 44... Kf5
{[%clk 0:00:02.1]} 45. Kb2 {[%clk 0:00:08.1]} 45... h2 {[%clk 0:00:02]} 46. Rc1
{[%clk 0:00:08.5]} 46... Nxb6 {[%clk 0:00:02.7]} 47. Ra1 {[%clk 0:00:06.4]}
47... Rxa7 {[%clk 0:00:03.1]} 48. Rg1 {[%clk 0:00:02.9]} 48... Na4+ {[%clk
0:00:03]} 49. Kb3 {[%clk 0:00:02.1]} 49... hxg1=Q {[%clk 0:00:03.9]} 0-1

[Event "Early-Titled-Tuesday-Blitz-May-28-2024"]
[Site "Chess.com"]
[Date "2024.05.28"]
[Round "6"]
[White "yobdc"]
[Black "juancruzarias"]
[Result "0-1"]
[WhiteElo "2523"]
[BlackElo "2681"]
[TimeControl "180+1"]
[EndTime "9:08:17 PDT"]
[Termination "juancruzarias won by checkmate"]

1. e4 {[%clk 0:03:00.9]} 1... c6 {[%clk 0:03:00.3]} 2. d4 {[%clk 0:03:00.3]}
2... d5 {[%clk 0:03:00.9]} 3. exd5 {[%clk 0:02:59.7]} 3... cxd5 {[%clk
0:03:01.3]} 4. Bd3 {[%clk 0:02:59.6]} 4... Nc6 {[%clk 0:03:01.1]} 5. c3 {[%clk
0:02:59.9]} 5... Nf6 {[%clk 0:03:00.6]} 6. h3 {[%clk 0:03:00.2]} 6... e5 {[%clk
0:03:01]} 7. dxe5 {[%clk 0:03:00.3]} 7... Nxe5 {[%clk 0:03:01.9]} 8. Nf3 {[%clk
0:03:00.8]} 8... Nxd3+ {[%clk 0:03:01.7]} 9. Qxd3 {[%clk 0:03:01.7]} 9... Bd6
{[%clk 0:03:02.3]} 10. Qe2+ {[%clk 0:02:45.5]} 10... Be7 {[%clk 0:03:00]} 11.
O-O {[%clk 0:02:36.3]} 11... O-O {[%clk 0:02:59.9]} 12. Rd1 {[%clk 0:02:30.9]}
12... Bc5 {[%clk 0:02:50.9]} 13. Bg5 {[%clk 0:02:24.5]} 13... h6 {[%clk
0:02:45.6]} 14. Bxf6 {[%clk 0:01:43.7]} 14... Qxf6 {[%clk 0:02:46.5]} 15. Rxd5
{[%clk 0:01:42.2]} 15... Bb6 {[%clk 0:02:46.1]} 16. Nbd2 {[%clk 0:01:40]} 16...
Be6 {[%clk 0:02:45.1]} 17. Ne4 {[%clk 0:01:15.7]} 17... Qf4 {[%clk 0:02:37.2]}
18. Rd2 {[%clk 0:01:06]} 18... Rfe8 {[%clk 0:02:27.1]} 19. Nd6 {[%clk
0:00:50.3]} 19... Red8 {[%clk 0:02:09.4]} 20. Rad1 {[%clk 0:00:44.8]} 20... Rd7
{[%clk 0:02:08.6]} 21. Qe5 {[%clk 0:00:27.4]} 21... Qa4 {[%clk 0:01:57.8]} 22.
Nf5 {[%clk 0:00:05.3]} 22... Bxf5 {[%clk 0:01:51.9]} 23. Qxf5 {[%clk 0:00:05.3]}
23... Qxd1+ {[%clk 0:01:51.7]} 24. Rxd1 {[%clk 0:00:05.8]} 24... Rxd1+ {[%clk
0:01:52.4]} 25. Kh2 {[%clk 0:00:06.4]} 25... Bc7+ {[%clk 0:01:47.8]} 26. g3
{[%clk 0:00:06.7]} 26... Rad8 {[%clk 0:01:45.5]} 27. Kg2 {[%clk 0:00:05.7]}
27... R1d7 {[%clk 0:01:43.1]} 28. Nd4 {[%clk 0:00:05.7]} 28... Bb6 {[%clk
0:01:42.9]} 29. Nf3 {[%clk 0:00:05.2]} 29... Re7 {[%clk 0:01:42.4]} 30. h4
{[%clk 0:00:04.4]} 30... Re2 {[%clk 0:01:39.6]} 31. h5 {[%clk 0:00:04.4]} 31...
Rxf2+ {[%clk 0:01:39.4]} 32. Kh3 {[%clk 0:00:04.9]} 32... Re8 {[%clk 0:01:36.1]}
33. Qd3 {[%clk 0:00:02.9]} 33... Rfe2 {[%clk 0:01:35.2]} 34. Nh4 {[%clk
0:00:02.4]} 34... R2e3 {[%clk 0:01:34.8]} 35. Qd7 {[%clk 0:00:02.5]} 35... R3e7
{[%clk 0:01:34.2]} 36. Qd5 {[%clk 0:00:02.4]} 36... Re5 {[%clk 0:01:32.9]} 37.
Qd7 {[%clk 0:00:02.4]} 37... R5e7 {[%clk 0:01:29.8]} 38. Qd5 {[%clk 0:00:02.2]}
38... Rd8 {[%clk 0:01:26.8]} 39. Qc4 {[%clk 0:00:02.3]} 39... Rc7 {[%clk
0:01:24.5]} 40. Qe4 {[%clk 0:00:01.8]} 40... Bc5 {[%clk 0:01:12.5]} 41. Nf5
{[%clk 0:00:02.1]} 41... Bf8 {[%clk 0:01:13.2]} 42. Qg4 {[%clk 0:00:02.4]} 42...
Kh8 {[%clk 0:01:13.7]} 43. Qe4 {[%clk 0:00:02.2]} 43... Rcd7 {[%clk 0:01:09.3]}
44. Qe5 {[%clk 0:00:02.1]} 44... Kg8 {[%clk 0:01:07.4]} 45. Qe4 {[%clk 0:00:02]}
45... b6 {[%clk 0:01:05.7]} 46. b4 {[%clk 0:00:02.4]} 46... Rc7 {[%clk
0:01:02.8]} 47. Qe5 {[%clk 0:00:02.3]} 47... Rdc8 {[%clk 0:01:02.3]} 48. Qe4
{[%clk 0:00:01.5]} 48... Rxc3 {[%clk 0:01:01.4]} 49. Qg4 {[%clk 0:00:01.7]}
49... Kh8 {[%clk 0:01:00]} 50. Qd4 {[%clk 0:00:01.8]} 50... R3c4 {[%clk
0:00:59.5]} 51. Qd7 {[%clk 0:00:02]} 51... R4c7 {[%clk 0:00:59.2]} 52. Qd5
{[%clk 0:00:02.4]} 52... Kg8 {[%clk 0:00:54.9]} 53. a3 {[%clk 0:00:02.6]} 53...
a5 {[%clk 0:00:49.5]} 54. bxa5 {[%clk 0:00:02.5]} 54... Rc5 {[%clk 0:00:49.9]}
55. Qd3 {[%clk 0:00:02.4]} 55... bxa5 {[%clk 0:00:49.4]} 56. Qe4 {[%clk
0:00:01.7]} 56... R5c7 {[%clk 0:00:41.7]} 57. Qg4 {[%clk 0:00:02]} 57... Kh8
{[%clk 0:00:39.8]} 58. a4 {[%clk 0:00:01.5]} 58... Rc4 {[%clk 0:00:37.5]} 59.
Qd1 {[%clk 0:00:01.7]} 59... R4c5 {[%clk 0:00:33.6]} 60. Qd3 {[%clk 0:00:01.9]}
60... Re5 {[%clk 0:00:29.4]} 61. Qd7 {[%clk 0:00:01.8]} 61... Rcc5 {[%clk
0:00:25.7]} 62. Nd6 {[%clk 0:00:01.2]} 62... Bxd6 {[%clk 0:00:24.9]} 63. Qxd6
{[%clk 0:00:01.1]} 63... Rf5 {[%clk 0:00:22.3]} 64. Qf8+ {[%clk 0:00:01]} 64...
Kh7 {[%clk 0:00:22.2]} 65. g4 {[%clk 0:00:01.5]} 65... Rf3+ {[%clk 0:00:20.6]}
66. Kh4 {[%clk 0:00:01.9]} 66... Rcc3 {[%clk 0:00:20.8]} 67. g5 {[%clk
0:00:02.3]} 67... Rf4# {[%clk 0:00:21.4]} 0-1

[Event "Early-Titled-Tuesday-Blitz-May-28-2024"]
[Site "Chess.com"]
[Date "2024.05.28"]
[Round "6"]
[White "chessfatbear"]
[Black "andrew-blr"]
[Result "0-1"]
[WhiteElo "2816"]
[BlackElo "2644"]
[TimeControl "180+1"]
[EndTime "9:08:19 PDT"]
[Termination "andrew-blr won by resignation"]

1. e4 {[%clk 0:02:59.8]} 1... c5 {[%clk 0:02:59.8]} 2. Nf3 {[%clk 0:03:00.2]}
2... e6 {[%clk 0:02:59.9]} 3. d4 {[%clk 0:02:59.5]} 3... cxd4 {[%clk 0:03:00.1]}
4. Nxd4 {[%clk 0:03:00.4]} 4... Bc5 {[%clk 0:03:00.5]} 5. Nb3 {[%clk 0:02:58.4]}
5... Bb6 {[%clk 0:03:00.5]} 6. Bd3 {[%clk 0:02:57.3]} 6... Ne7 {[%clk
0:03:00.7]} 7. O-O {[%clk 0:02:57.6]} 7... O-O {[%clk 0:03:01.2]} 8. Nc3 {[%clk
0:02:56.9]} 8... f5 {[%clk 0:03:01.6]} 9. exf5 {[%clk 0:02:54.3]} 9... Nxf5
{[%clk 0:03:01.4]} 10. Qe2 {[%clk 0:02:49.4]} 10... Nc6 {[%clk 0:03:00.6]} 11.
Bxf5 {[%clk 0:02:39.4]} 11... Rxf5 {[%clk 0:02:59.2]} 12. Be3 {[%clk 0:02:40]}
12... d5 {[%clk 0:02:57.1]} 13. Bxb6 {[%clk 0:02:37.3]} 13... Qxb6 {[%clk
0:02:57.2]} 14. Na4 {[%clk 0:02:31.4]} 14... Qc7 {[%clk 0:02:48.8]} 15. Nac5
{[%clk 0:02:31.3]} 15... e5 {[%clk 0:02:41.8]} 16. Rad1 {[%clk 0:02:22.4]} 16...
b6 {[%clk 0:02:40.4]} 17. Na4 {[%clk 0:02:19]} 17... Be6 {[%clk 0:02:11.4]} 18.
Nc3 {[%clk 0:02:16.2]} 18... Rd8 {[%clk 0:02:09.1]} 19. Rfe1 {[%clk 0:02:14.5]}
19... h5 {[%clk 0:01:55.1]} 20. Qb5 {[%clk 0:02:06.6]} 20... e4 {[%clk
0:01:37.6]} 21. Qe2 {[%clk 0:01:58.1]} 21... Rdf8 {[%clk 0:01:35.3]} 22. Nb5
{[%clk 0:01:56.9]} 22... Qf7 {[%clk 0:01:30.1]} 23. Rf1 {[%clk 0:01:56.6]} 23...
Ne5 {[%clk 0:01:27.2]} 24. Nd6 {[%clk 0:01:54.3]} 24... Qg6 {[%clk 0:01:18.8]}
25. Nxf5 {[%clk 0:01:52.1]} 25... Rxf5 {[%clk 0:01:18.8]} 26. Kh1 {[%clk
0:01:48.6]} 26... Rg5 {[%clk 0:01:16.8]} 27. Rg1 {[%clk 0:01:32.8]} 27... Bg4
{[%clk 0:01:14.9]} 28. Qd2 {[%clk 0:01:28.4]} 28... Nf3 {[%clk 0:01:07.7]} 29.
Qf4 {[%clk 0:01:20]} 29... Nxg1 {[%clk 0:01:04.6]} 30. Rxg1 {[%clk 0:01:20.9]}
30... Bf3 {[%clk 0:01:04.6]} 31. Qxg5 {[%clk 0:00:55.8]} 31... Qxg5 {[%clk
0:01:04.1]} 32. gxf3 {[%clk 0:00:56.7]} 32... Qf4 {[%clk 0:01:04.8]} 33. Nd4
{[%clk 0:00:52.3]} 33... exf3 {[%clk 0:00:48.9]} 34. Rxg7+ {[%clk 0:00:28.5]}
34... Kh8 {[%clk 0:00:48.5]} 35. c3 {[%clk 0:00:26.7]} 35... Qc1+ {[%clk
0:00:46.9]} 36. Rg1 {[%clk 0:00:26.8]} 36... Qxb2 {[%clk 0:00:47.2]} 37. Nxf3
{[%clk 0:00:25.1]} 37... Qxf2 {[%clk 0:00:34.2]} 38. Ne5 {[%clk 0:00:20.1]}
38... h4 {[%clk 0:00:31.3]} 39. h3 {[%clk 0:00:16.6]} 39... Kh7 {[%clk
0:00:28.8]} 40. Ng4 {[%clk 0:00:15.4]} 40... Qf3+ {[%clk 0:00:24]} 41. Kh2
{[%clk 0:00:15.1]} 41... Qxc3 {[%clk 0:00:22.4]} 42. Rf1 {[%clk 0:00:11.6]}
42... d4 {[%clk 0:00:21]} 43. Rf2 {[%clk 0:00:05.4]} 43... d3 {[%clk 0:00:21.1]}
44. Nf6+ {[%clk 0:00:05.1]} 44... Kg6 {[%clk 0:00:20.4]} 45. Ne4 {[%clk
0:00:05.1]} 45... Qd4 {[%clk 0:00:20.6]} 46. Rg2+ {[%clk 0:00:04.1]} 46... Kf7
{[%clk 0:00:18]} 47. Nd2 {[%clk 0:00:02.1]} 47... Ke7 {[%clk 0:00:18]} 48. Kh1
{[%clk 0:00:01.2]} 48... b5 {[%clk 0:00:17.7]} 49. Kh2 {[%clk 0:00:01.4]} 49...
b4 {[%clk 0:00:17.7]} 50. Rg4 {[%clk 0:00:01.9]} 50... Qf2+ {[%clk 0:00:16.6]}
51. Rg2 {[%clk 0:00:02.3]} 51... Qf4+ {[%clk 0:00:16.8]} 52. Kg1 {[%clk
0:00:02.9]} 52... a5 {[%clk 0:00:16.8]} 53. Rf2 {[%clk 0:00:03.2]} 53... Qe3
{[%clk 0:00:16.3]} 54. Kg2 {[%clk 0:00:03.4]} 54... a4 {[%clk 0:00:15.8]} 55.
Nc4 {[%clk 0:00:03.4]} 55... Qe4+ {[%clk 0:00:15.4]} 0-1

[Event "Early-Titled-Tuesday-Blitz-May-28-2024"]
[Site "Chess.com"]
[Date "2024.05.28"]
[Round "6"]
[White "aanshnerurkar"]
[Black "viktorskliarov"]
[Result "0-1"]
[WhiteElo "2482"]
[BlackElo "2638"]
[TimeControl "180+1"]
[EndTime "9:08:24 PDT"]
[Termination "viktorskliarov won on time"]

1. e4 {[%clk 0:03:00.9]} 1... c5 {[%clk 0:03:00.4]} 2. Nf3 {[%clk 0:02:59.9]}
2... Nc6 {[%clk 0:03:01]} 3. Bb5 {[%clk 0:02:57.9]} 3... e6 {[%clk 0:03:01.1]}
4. O-O {[%clk 0:02:57.1]} 4... Nge7 {[%clk 0:03:01.5]} 5. d4 {[%clk 0:02:57.3]}
5... cxd4 {[%clk 0:03:01.5]} 6. Nxd4 {[%clk 0:02:57.6]} 6... Qb6 {[%clk
0:03:01.2]} 7. Nxc6 {[%clk 0:02:56.6]} 7... dxc6 {[%clk 0:03:01.5]} 8. Be2
{[%clk 0:02:51]} 8... e5 {[%clk 0:03:01.6]} 9. Nd2 {[%clk 0:02:46.5]} 9... Ng6
{[%clk 0:03:01.1]} 10. Nc4 {[%clk 0:02:46.3]} 10... Qc7 {[%clk 0:03:01.2]} 11.
g3 {[%clk 0:02:35.9]} 11... Bh3 {[%clk 0:02:54.5]} 12. Re1 {[%clk 0:02:35.1]}
12... Rd8 {[%clk 0:02:54]} 13. Bd3 {[%clk 0:02:34.9]} 13... h5 {[%clk
0:02:48.1]} 14. Bg5 {[%clk 0:02:20.8]} 14... f6 {[%clk 0:02:18]} 15. Be3 {[%clk
0:02:19]} 15... b5 {[%clk 0:02:12.3]} 16. Nd2 {[%clk 0:02:16.9]} 16... Qd7
{[%clk 0:01:44.6]} 17. Nb3 {[%clk 0:01:43.1]} 17... h4 {[%clk 0:01:25.3]} 18.
Qf3 {[%clk 0:01:12.7]} 18... Bg4 {[%clk 0:01:03]} 19. Qg2 {[%clk 0:01:11.6]}
19... hxg3 {[%clk 0:01:03.3]} 20. fxg3 {[%clk 0:01:00.8]} 20... Bb4 {[%clk
0:00:44.4]} 21. Rec1 {[%clk 0:00:52.1]} 21... O-O {[%clk 0:00:29.2]} 22. a4
{[%clk 0:00:45.5]} 22... a6 {[%clk 0:00:25.8]} 23. axb5 {[%clk 0:00:43.5]} 23...
axb5 {[%clk 0:00:26.7]} 24. Ra7 {[%clk 0:00:39.3]} 24... Qe6 {[%clk 0:00:26.3]}
25. Nc5 {[%clk 0:00:14.8]} 25... Bxc5 {[%clk 0:00:24.1]} 26. Bxc5 {[%clk
0:00:15]} 26... Rf7 {[%clk 0:00:24.4]} 27. Qf2 {[%clk 0:00:14.9]} 27... Rxa7
{[%clk 0:00:21.4]} 28. Bxa7 {[%clk 0:00:14.8]} 28... Nf8 {[%clk 0:00:19.1]} 29.
Bc5 {[%clk 0:00:13.7]} 29... Nd7 {[%clk 0:00:19]} 30. Be3 {[%clk 0:00:13.8]}
30... Nf8 {[%clk 0:00:11.9]} 31. Bf1 {[%clk 0:00:12.9]} 31... Rd7 {[%clk
0:00:11.8]} 32. c4 {[%clk 0:00:12.7]} 32... b4 {[%clk 0:00:11.5]} 33. Bc5 {[%clk
0:00:10.4]} 33... b3 {[%clk 0:00:11]} 34. Be3 {[%clk 0:00:10.7]} 34... Qf7
{[%clk 0:00:10.6]} 35. c5 {[%clk 0:00:11.1]} 35... Be6 {[%clk 0:00:10.9]} 36.
Ra1 {[%clk 0:00:08.5]} 36... Rb7 {[%clk 0:00:09.4]} 37. Qe2 {[%clk 0:00:08.4]}
37... Nd7 {[%clk 0:00:09]} 38. h4 {[%clk 0:00:07.9]} 38... Qg6 {[%clk
0:00:08.9]} 39. Qf2 {[%clk 0:00:07.4]} 39... Qxe4 {[%clk 0:00:09]} 40. Bg2
{[%clk 0:00:07.1]} 40... Qc2 {[%clk 0:00:09.4]} 41. Bxc6 {[%clk 0:00:06.6]}
41... Rc7 {[%clk 0:00:09.7]} 42. Bxd7 {[%clk 0:00:06.9]} 42... Bxd7 {[%clk
0:00:09.6]} 43. Qxc2 {[%clk 0:00:07]} 43... bxc2 {[%clk 0:00:10]} 44. Rc1 {[%clk
0:00:07.3]} 44... Ba4 {[%clk 0:00:09.6]} 45. Kf2 {[%clk 0:00:06.8]} 45... Bb3
{[%clk 0:00:08.7]} 46. Ke2 {[%clk 0:00:06.3]} 46... Rd7 {[%clk 0:00:08.2]} 47.
Ra1 {[%clk 0:00:02.7]} 47... Kf7 {[%clk 0:00:05.8]} 48. Ra3 {[%clk 0:00:02.8]}
48... Be6 {[%clk 0:00:04.7]} 49. Rc3 {[%clk 0:00:02.2]} 49... Bf5 {[%clk
0:00:05.1]} 50. c6 {[%clk 0:00:02.2]} 50... Rc7 {[%clk 0:00:05.7]} 51. b4 {[%clk
0:00:02.3]} 51... Ke6 {[%clk 0:00:05.5]} 52. b5 {[%clk 0:00:02.8]} 52... Kd5
{[%clk 0:00:05.3]} 53. Kd2 {[%clk 0:00:01.5]} 53... Rc8 {[%clk 0:00:05.6]} 0-1

[Event "Early-Titled-Tuesday-Blitz-May-28-2024"]
[Site "Chess.com"]
[Date "2024.05.28"]
[Round "6"]
[White "Mikhail_Golubev"]
[Black "Gryffindorac8"]
[Result "1-0"]
[WhiteElo "2632"]
[BlackElo "2468"]
[TimeControl "180+1"]
[EndTime "9:08:24 PDT"]
[Termination "Mikhail_Golubev won by resignation"]

1. e4 {[%clk 0:03:00.9]} 1... c5 {[%clk 0:02:59.6]} 2. Nf3 {[%clk 0:03:00.8]}
2... d6 {[%clk 0:02:59]} 3. d4 {[%clk 0:03:00.7]} 3... cxd4 {[%clk 0:02:59.9]}
4. Nxd4 {[%clk 0:03:01.1]} 4... Nf6 {[%clk 0:02:59.2]} 5. Nc3 {[%clk 0:03:01.6]}
5... a6 {[%clk 0:02:58.8]} 6. Bc4 {[%clk 0:03:01.8]} 6... e6 {[%clk 0:02:57.8]}
7. Bb3 {[%clk 0:03:02.3]} 7... b5 {[%clk 0:02:56.3]} 8. O-O {[%clk 0:03:02]}
8... Be7 {[%clk 0:02:55.6]} 9. Qf3 {[%clk 0:03:01.4]} 9... Qc7 {[%clk
0:02:51.6]} 10. Qg3 {[%clk 0:03:01.1]} 10... O-O {[%clk 0:02:49.8]} 11. Bh6
{[%clk 0:03:00.1]} 11... Ne8 {[%clk 0:02:46.8]} 12. Rad1 {[%clk 0:02:57.7]}
12... b4 {[%clk 0:02:16.4]} 13. Nce2 {[%clk 0:02:50.8]} 13... Nc6 {[%clk
0:02:10.7]} 14. Nf4 {[%clk 0:01:24.7]} 14... Nxd4 {[%clk 0:01:55.8]} 15. Rxd4
{[%clk 0:01:25.6]} 15... Bf6 {[%clk 0:01:09.9]} 16. Rc4 {[%clk 0:01:25.6]} 16...
Qe7 {[%clk 0:01:00.8]} 17. Nh5 {[%clk 0:01:14.3]} 17... Kh8 {[%clk 0:00:53.5]}
18. Nxf6 {[%clk 0:01:10]} 18... Qxf6 {[%clk 0:00:53.9]} 19. Be3 {[%clk
0:00:55.2]} 19... Bb7 {[%clk 0:00:44.7]} 20. Rxb4 {[%clk 0:00:48.3]} 20... Bc6
{[%clk 0:00:35.5]} 21. Bg5 {[%clk 0:00:27.6]} 21... Qg6 {[%clk 0:00:21.9]} 22.
Be7 {[%clk 0:00:26.7]} 22... Rg8 {[%clk 0:00:17.3]} 23. Bxd6 {[%clk 0:00:24.9]}
23... Nxd6 {[%clk 0:00:16.3]} 24. Qxd6 {[%clk 0:00:23.7]} 24... Bxe4 {[%clk
0:00:16.7]} 25. Qg3 {[%clk 0:00:13.2]} 25... Bxc2 {[%clk 0:00:10.2]} 26. Qxg6
{[%clk 0:00:12.8]} 26... Bxg6 {[%clk 0:00:11.1]} 27. Rc1 {[%clk 0:00:11.8]}
27... a5 {[%clk 0:00:11]} 28. Rd4 {[%clk 0:00:11.7]} 28... Rgd8 {[%clk 0:00:10]}
29. Rxd8+ {[%clk 0:00:10.9]} 29... Rxd8 {[%clk 0:00:10.9]} 30. h3 {[%clk
0:00:10.5]} 30... h6 {[%clk 0:00:10.6]} 31. Rc5 {[%clk 0:00:10.6]} 31... Ra8
{[%clk 0:00:10.3]} 32. a4 {[%clk 0:00:09.7]} 32... Kg8 {[%clk 0:00:10.7]} 33.
Bc4 {[%clk 0:00:09.5]} 33... Kf8 {[%clk 0:00:10.4]} 34. b3 {[%clk 0:00:09.8]}
34... Ke7 {[%clk 0:00:10.5]} 35. Rc7+ {[%clk 0:00:09.8]} 35... Kd6 {[%clk
0:00:10]} 36. Rb7 {[%clk 0:00:10.1]} 36... Kc5 {[%clk 0:00:05.6]} 37. h4 {[%clk
0:00:07.3]} 37... h5 {[%clk 0:00:05.5]} 38. Kh2 {[%clk 0:00:07.3]} 38... Kd4
{[%clk 0:00:05.8]} 39. Kg3 {[%clk 0:00:07.3]} 39... Kc3 {[%clk 0:00:05.5]} 40.
Kf4 {[%clk 0:00:06.7]} 40... Kd4 {[%clk 0:00:02.7]} 41. f3 {[%clk 0:00:06.8]}
41... Kc5 {[%clk 0:00:03]} 42. g4 {[%clk 0:00:07]} 42... hxg4 {[%clk 0:00:01.9]}
43. fxg4 {[%clk 0:00:06.7]} 43... e5+ {[%clk 0:00:01]} 44. Kxe5 {[%clk
0:00:05.2]} 44... f6+ {[%clk 0:00:01.7]} 45. Kf4 {[%clk 0:00:05.3]} 45... Re8
{[%clk 0:00:02]} 46. Rxg7 {[%clk 0:00:05.1]} 46... Bc2 {[%clk 0:00:01.9]} 47.
Rf7 {[%clk 0:00:04.6]} 47... Kb4 {[%clk 0:00:02.1]} 48. Rxf6 {[%clk 0:00:04.4]}
48... Bxb3 {[%clk 0:00:02.5]} 49. Bxb3 {[%clk 0:00:03.4]} 49... Kxb3 {[%clk
0:00:03.4]} 50. Rb6+ {[%clk 0:00:03.1]} 50... Kxa4 {[%clk 0:00:03.8]} 51. h5
{[%clk 0:00:03.4]} 51... Rf8+ {[%clk 0:00:04]} 52. Kg3 {[%clk 0:00:03.4]} 52...
Ka3 {[%clk 0:00:04.4]} 53. Kh4 {[%clk 0:00:03.6]} 53... a4 {[%clk 0:00:04.7]}
54. h6 {[%clk 0:00:04.1]} 54... Ka2 {[%clk 0:00:04.8]} 55. Kh5 {[%clk
0:00:04.4]} 55... a3 {[%clk 0:00:05.1]} 56. g5 {[%clk 0:00:04.5]} 56... Ka1
{[%clk 0:00:05.4]} 57. h7 {[%clk 0:00:04.4]} 57... a2 {[%clk 0:00:05.3]} 58. Ra6
{[%clk 0:00:04.7]} 58... Kb2 {[%clk 0:00:04.3]} 59. Rxa2+ {[%clk 0:00:05]} 59...
Kxa2 {[%clk 0:00:05]} 60. g6 {[%clk 0:00:05.3]} 60... Kb3 {[%clk 0:00:04.6]} 61.
g7 {[%clk 0:00:05.4]} 61... Rf5+ {[%clk 0:00:04.4]} 62. Kg6 {[%clk 0:00:05.2]}
62... Rf1 {[%clk 0:00:04.7]} 63. g8=Q+ {[%clk 0:00:05.4]} 1-0